Workbook

Sheet Sheet1
A1: Venue | B1: Races | C1: Bets | D1: Return | E1: Strike Rate
A2: WERRIBEE | B2: 844 | C2: 306 | D2: 813.8 | E2: =C2/B2 -> 0.3625592417
A3: WELLINGTON | B3: 314 | C3: 113 | D3: 323.7 | E3: =C3/B3 -> 0.3598726115
A4: YARRA VALLEY | B4: 401 | C4: 142 | D4: 368.3 | E4: =C4/B4 -> 0.3541147132
A5: NARROGIN | B5: 221 | C5: 77 | D5: 223 | E5: =C5/B5 -> 0.3484162896
A6: HOBART | B6: 1673 | C6: 582 | D6: 1535.5 | E6: =C6/B6 -> 0.3478780634
A7: ROCKHAMPTON | B7: 2127 | C7: 739 | D7: 1960.5 | E7: =C7/B7 -> 0.3474377057
A8: GOULBURN | B8: 913 | C8: 316 | D8: 848.6 | E8: =C8/B8 -> 0.3461117196
A9: WYONG | B9: 1739 | C9: 601 | D9: 1554.6 | E9: =C9/B9 -> 0.3456009201
A10: PORT MACQUARIE | B10: 965 | C10: 333 | D10: 950.9 | E10: =C10/B10 -> 0.3450777202
A11: TATURA | B11: 406 | C11: 140 | D11: 395.6 | E11: =C11/B11 -> 0.3448275862
A12: HAWKESBURY | B12: 1685 | C12: 580 | D12: 1486.7 | E12: =C12/B12 -> 0.3442136499
A13: NARACOORTE | B13: 400 | C13: 137 | D13: 389.5 | E13: =C13/B13 -> 0.3425
A14: NEWCASTLE | B14: 2390 | C14: 818 | D14: 2129.7 | E14: =C14/B14 -> 0.3422594142
A15: BELMONT PARK | B15: 4043 | C15: 1378 | D15: 3794.5 | E15: =C15/B15 -> 0.3408360129
A16: COLAC | B16: 320 | C16: 109 | D16: 292.6 | E16: =C16/B16 -> 0.340625
A17: KILMORE | B17: 1069 | C17: 362 | D17: 936.8 | E17: =C17/B17 -> 0.3386342376
A18: MURTOA | B18: 234 | C18: 79 | D18: 236.7 | E18: =C18/B18 -> 0.3376068376
A19: TOWNSVILLE | B19: 2025 | C19: 679 | D19: 1801.6 | E19: =C19/B19 -> 0.335308642
A20: ROSEHILL | B20: 2343 | C20: 782 | D20: 2112 | E20: =C20/B20 -> 0.3337601366
A21: LAUNCESTON | B21: 1445 | C21: 481 | D21: 1340.6 | E21: =C21/B21 -> 0.3328719723
A22: SCONE | B22: 718 | C22: 239 | D22: 664.3 | E22: =C22/B22 -> 0.3328690808
A23: MUDGEE | B23: 241 | C23: 80 | D23: 230.9 | E23: =C23/B23 -> 0.3319502075
A24: MURWILLUMBAH | B24: 404 | C24: 134 | D24: 360 | E24: =C24/B24 -> 0.3316831683
A25: GOLD COAST | B25: 4434 | C25: 1468 | D25: 3903.9 | E25: =C25/B25 -> 0.3310780334
A26: GOSFORD | B26: 1747 | C26: 575 | D26: 1429.5 | E26: =C26/B26 -> 0.3291356611
A27: PAKENHAM | B27: 1088 | C27: 358 | D27: 974.2 | E27: =C27/B27 -> 0.3290441176
A28: CANTERBURY | B28: 2465 | C28: 811 | D28: 2141.5 | E28: =C28/B28 -> 0.3290060852
A29: TOOWOOMBA | B29: 3710 | C29: 1220 | D29: 3175.3 | E29: =C29/B29 -> 0.3288409704
A30: GUNDAGAI | B30: 280 | C30: 92 | D30: 243.7 | E30: =C30/B30 -> 0.3285714286
A31: SEYMOUR | B31: 1355 | C31: 445 | D31: 1205.2 | E31: =C31/B31 -> 0.3284132841
A32: GEELONG | B32: 2431 | C32: 797 | D32: 2122.9 | E32: =C32/B32 -> 0.327848622
A33: STAWELL | B33: 397 | C33: 130 | D33: 351.8 | E33: =C33/B33 -> 0.3274559194
A34: SUNSHINE COAST | B34: 5113 | C34: 1670 | D34: 4502 | E34: =C34/B34 -> 0.3266184236
A35: PORT AUGUSTA | B35: 395 | C35: 129 | D35: 358 | E35: =C35/B35 -> 0.3265822785
A36: NORTHAM | B36: 1867 | C36: 608 | D36: 1672.4 | E36: =C36/B36 -> 0.3256561328
A37: IPSWICH | B37: 3469 | C37: 1129 | D37: 2957 | E37: =C37/B37 -> 0.3254540213
A38: HAMILTON | B38: 710 | C38: 231 | D38: 642.6 | E38: =C38/B38 -> 0.3253521127
A39: KEMBLA GRANGE | B39: 2306 | C39: 750 | D39: 1987.9 | E39: =C39/B39 -> 0.3252385082
A40: NOWRA | B40: 582 | C40: 189 | D40: 516.9 | E40: =C40/B40 -> 0.324742268
A41: BALLARAT | B41: 2161 | C41: 701 | D41: 1897.1 | E41: =C41/B41 -> 0.3243868579
A42: RANDWICK | B42: 2792 | C42: 905 | D42: 2509.5 | E42: =C42/B42 -> 0.3241404011
A43: ASCOT | B43: 3484 | C43: 1128 | D43: 3047.8 | E43: =C43/B43 -> 0.3237657865
A44: SANDOWN | B44: 2986 | C44: 964 | D44: 2791.8 | E44: =C44/B44 -> 0.3228399196
A45: WAGGA | B45: 1044 | C45: 337 | D45: 974.5 | E45: =C45/B45 -> 0.3227969349
A46: TAMWORTH | B46: 872 | C46: 281 | D46: 744 | E46: =C46/B46 -> 0.3222477064
A47: MORNINGTON | B47: 1604 | C47: 516 | D47: 1406.6 | E47: =C47/B47 -> 0.3216957606
A48: MOONEE VALLEY | B48: 2534 | C48: 815 | D48: 2294.8 | E48: =C48/B48 -> 0.3216258879
A49: DARWIN | B49: 821 | C49: 264 | D49: 689.3 | E49: =C49/B49 -> 0.3215590743
A50: DONALD | B50: 302 | C50: 97 | D50: 273.6 | E50: =C50/B50 -> 0.321192053
A51: DEVONPORT | B51: 708 | C51: 227 | D51: 604.7 | E51: =C51/B51 -> 0.3206214689
A52: MILDURA | B52: 599 | C52: 192 | D52: 530.8 | E52: =C52/B52 -> 0.3205342237
A53: BENDIGO | B53: 1976 | C53: 628 | D53: 1715.5 | E53: =C53/B53 -> 0.3178137652
A54: MUSWELLBROOK | B54: 901 | C54: 286 | D54: 798 | E54: =C54/B54 -> 0.3174250832
A55: DOOMBEN | B55: 3553 | C55: 1127 | D55: 3137.1 | E55: =C55/B55 -> 0.3171967352
A56: BATHURST | B56: 640 | C56: 203 | D56: 559.6 | E56: =C56/B56 -> 0.3171875
A57: BAIRNSDALE | B57: 511 | C57: 162 | D57: 439.3 | E57: =C57/B57 -> 0.3170254403
A58: BUNBURY | B58: 1675 | C58: 531 | D58: 1474 | E58: =C58/B58 -> 0.3170149254
A59: CESSNOCK | B59: 653 | C59: 207 | D59: 589.8 | E59: =C59/B59 -> 0.3169984686
A60: WARWICK FARM | B60: 1364 | C60: 432 | D60: 1151.6 | E60: =C60/B60 -> 0.3167155425
A61: ARMIDALE | B61: 357 | C61: 113 | D61: 321.8 | E61: =C61/B61 -> 0.3165266106
A62: MT BARKER | B62: 367 | C62: 116 | D62: 329.1 | E62: =C62/B62 -> 0.3160762943
A63: ALBURY | B63: 655 | C63: 207 | D63: 597 | E63: =C63/B63 -> 0.3160305344
A64: ARARAT | B64: 444 | C64: 140 | D64: 376 | E64: =C64/B64 -> 0.3153153153
A65: MACKAY | B65: 771 | C65: 243 | D65: 615.3 | E65: =C65/B65 -> 0.3151750973
A66: CHELTENHAM | B66: 1202 | C66: 378 | D66: 1080 | E66: =C66/B66 -> 0.3144758735
A67: ALICE SPRINGS | B67: 392 | C67: 123 | D67: 311.2 | E67: =C67/B67 -> 0.3137755102
A68: BALAKLAVA | B68: 1019 | C68: 318 | D68: 890.9 | E68: =C68/B68 -> 0.3120706575
A69: MORPHETTVILLE | B69: 3606 | C69: 1125 | D69: 3135.5 | E69: =C69/B69 -> 0.3119800333
A70: SALE | B70: 1598 | C70: 498 | D70: 1351.1 | E70: =C70/B70 -> 0.3116395494
A71: CASTERTON | B71: 244 | C71: 76 | D71: 229.8 | E71: =C71/B71 -> 0.3114754098
A72: GERALDTON | B72: 973 | C72: 303 | D72: 874.2 | E72: =C72/B72 -> 0.3114080164
A73: VICTORIA PARK | B73: 450 | C73: 140 | D73: 387 | E73: =C73/B73 -> 0.3111111111
A74: SWAN HILL | B74: 650 | C74: 202 | D74: 557.2 | E74: =C74/B74 -> 0.3107692308
A75: PENOLA | B75: 387 | C75: 120 | D75: 354.2 | E75: =C75/B75 -> 0.3100775194
A76: ORANGE | B76: 291 | C76: 90 | D76: 246.2 | E76: =C76/B76 -> 0.3092783505
A77: TRARALGON | B77: 249 | C77: 77 | D77: 198.4 | E77: =C77/B77 -> 0.3092369478
A78: WODONGA | B78: 505 | C78: 156 | D78: 443.9 | E78: =C78/B78 -> 0.3089108911
A79: GAWLER | B79: 988 | C79: 305 | D79: 839.7 | E79: =C79/B79 -> 0.3087044534
A80: STRATHALBYN | B80: 1054 | C80: 324 | D80: 878.9 | E80: =C80/B80 -> 0.3074003795
A81: PORT LINCOLN | B81: 879 | C81: 270 | D81: 786.1 | E81: =C81/B81 -> 0.3071672355
A82: LISMORE | B82: 433 | C82: 133 | D82: 386.8 | E82: =C82/B82 -> 0.3071593533
A83: KALGOORLIE | B83: 1453 | C83: 446 | D83: 1303.5 | E83: =C83/B83 -> 0.3069511356
A84: BENALLA | B84: 481 | C84: 147 | D84: 419.9 | E84: =C84/B84 -> 0.3056133056
A85: CANBERRA | B85: 1678 | C85: 512 | D85: 1380.8 | E85: =C85/B85 -> 0.305125149
A86: CRANBOURNE | B86: 1839 | C86: 560 | D86: 1566.6 | E86: =C86/B86 -> 0.3045133225
A87: KYNETON | B87: 1166 | C87: 355 | D87: 910.1 | E87: =C87/B87 -> 0.3044596913
A88: EAGLE FARM | B88: 3702 | C88: 1119 | D88: 3150.9 | E88: =C88/B88 -> 0.3022690438
A89: ECHUCA | B89: 846 | C89: 255 | D89: 680.9 | E89: =C89/B89 -> 0.3014184397
A90: WARRACKNABEAL | B90: 274 | C90: 82 | D90: 223.7 | E90: =C90/B90 -> 0.299270073
A91: SAPPHIRE COAST | B91: 253 | C91: 75 | D91: 206.8 | E91: =C91/B91 -> 0.2964426877
A92: ALBANY | B92: 773 | C92: 229 | D92: 637.1 | E92: =C92/B92 -> 0.2962483829
A93: CAULFIELD | B93: 1804 | C93: 534 | D93: 1565.5 | E93: =C93/B93 -> 0.2960088692
A94: WANGARATTA | B94: 730 | C94: 215 | D94: 589.8 | E94: =C94/B94 -> 0.2945205479
A95: QUEANBEYAN | B95: 710 | C95: 209 | D95: 558.1 | E95: =C95/B95 -> 0.2943661972
A96: STONY CREEK | B96: 451 | C96: 132 | D96: 348 | E96: =C96/B96 -> 0.2926829268
A97: HORSHAM | B97: 315 | C97: 92 | D97: 264.6 | E97: =C97/B97 -> 0.2920634921
A98: MOE | B98: 951 | C98: 276 | D98: 758.4 | E98: =C98/B98 -> 0.2902208202
A99: DUBBO | B99: 479 | C99: 139 | D99: 368.8 | E99: =C99/B99 -> 0.2901878914
A100: TAREE | B100: 1079 | C100: 312 | D100: 898.9 | E100: =C100/B100 -> 0.2891566265
A101: COFFS HARBOUR | B101: 662 | C101: 190 | D101: 551.5 | E101: =C101/B101 -> 0.2870090634
A102: WARRNAMBOOL | B102: 1434 | C102: 411 | D102: 1156 | E102: =C102/B102 -> 0.2866108787
A103: MURRAY BRIDGE | B103: 1245 | C103: 356 | D103: 1005.4 | E103: =C103/B103 -> 0.2859437751
A104: TERANG | B104: 439 | C104: 125 | D104: 348.2 | E104: =C104/B104 -> 0.284738041
A105: FLEMINGTON | B105: 1892 | C105: 536 | D105: 1659.1 | E105: =C105/B105 -> 0.2832980973
A106: MORUYA | B106: 266 | C106: 75 | D106: 218.1 | E106: =C106/B106 -> 0.2819548872
A107: GRAFTON | B107: 1144 | C107: 321 | D107: 946.8 | E107: =C107/B107 -> 0.2805944056
A108: PINJARRA | B108: 1650 | C108: 461 | D108: 1334.2 | E108: =C108/B108 -> 0.2793939394
A109: BALLINA | B109: 713 | C109: 197 | D109: 583.5 | E109: =C109/B109 -> 0.2762973352
A110: NEW ZEALAND | B110: 491 | C110: 133 | D110: 384.3 | E110: =C110/B110 -> 0.2708757637
A111: NARROMINE | B111: 244 | C111: 66 | D111: 173.4 | E111: =C111/B111 -> 0.2704918033
A112: GUNNEDAH | B112: 248 | C112: 67 | D112: 195.9 | E112: =C112/B112 -> 0.2701612903
A113: MT GAMBIER | B113: 460 | C113: 123 | D113: 337.7 | E113: =C113/B113 -> 0.2673913043
A114: QUIRINDI | B114: 257 | C114: 67 | D114: 188.5 | E114: =C114/B114 -> 0.2607003891

Sheet Sheet2

Sheet Sheet3
